Cogmind - Beta 15 @@@ ROGUE MODE // 2025.05.30 @ 17:15:46 Player: YA-B01 Result: Destroyed by QO-D52(R) with Subdweller Machine Gun Performance ------------- Evolutions (0) 0 Regions Visited (2) 400 Robots Destroyed (7) 35 Value Destroyed (108) 108 Prototype IDs (0) 0 Alien Tech Used (0) 0 Bonus (0) 0 TOTAL SCORE: 543 Bonus ------- None Cogmind --------- Core Integrity 0/250 Matter 300/300 Energy 99/100 System Corruption 0% Temperature Cool (0) Movement Rolling (110) Location -10/Subcaves Parts ------- > --- POWER (1) -------- (None) > --- PROPULSION (2) --- Subdweller Monowheel > --- UTILITY (2) ------ Small Storage Unit > --- WEAPON (2) ------- (None) > --- INVENTORY (8) ---- Subdweller Power Source Subdweller Power Source Improved Terrain Scanner Seismic Detector ECM Suite Scrap Shield Fragment (50) Peak State ------------ > --- POWER ------------ Ion Engine > --- PROPULSION ------- Light Treads Light Treads > --- UTILITY ---------- Small Storage Unit > --- WEAPON ----------- Small Laser Assault Rifle > --- INVENTORY -------- Ion Engine Improved Terrain Scanner Improved Terrain Scanner Seismic Detector Seismic Detector EM Pulse Gun [Rating: 7] Favorites ----------- Power Ion Engine Engine Ion Engine Propulsion Light Treads Treads Light Treads Leg Aluminum Leg Wheel Subdweller Monowheel Utility Small Storage Unit Storage Small Storage Unit Weapon EM Pulse Gun Energy Gun EM Pulse Gun Ballistic Gun Assault Rifle Build | -11 -10 -10 ------- Run | Yrd Mat Sub Slots Evolved . | . . . Power . | . . . Propulsion . | . . . Utility . | . . . Weapon . | . . . Parts Attached 10 | 6 . 4 Power 2 | 1 . 1 Engine 2 | 1 . 1 Core . | . . . Reactor . | . . . Propulsion 4 | 2 . 2 Treads 2 | 2 . . Leg 1 | . . 1 Wheel 1 | . . 1 Hover . | . . . Flight . | . . . Utility 1 | 1 . . Device . | . . . Storage 1 | 1 . . Processor . | . . . Hackware . | . . . Protection . | . . . Artifact . | . . . Weapon 3 | 2 . 1 Energy Gun 2 | 1 . 1 Energy Cannon . | . . . Ballistic Gun 1 | 1 . . Ballistic Cannon . | . . . Launcher . | . . . Special Weapon . | . . . Impact Weapon . | . . . Slashing Weapon . | . . . Piercing Weapon . | . . . Special Melee Weapon . | . . . Unidentified Prototypes . | . . . Parts Lost 7 | . . 7 Power 1 | . . 1 Propulsion 3 | . . 3 Utility . | . . . Weapon 3 | . . 3 Highest Loss Streak 5 | . . 5 To Critical Strikes . | . . . Average Backups 5 | 2 4 6 Power 1 | . 1 1 Propulsion 1 | . . 1 Utility 2 | . 2 2 Weapon . | . 1 . Tool/Special . | . . . Unused Backups 5 | . . 5 Power 2 | . . 2 Propulsion . | . . . Utility 3 | . . 3 Weapon . | . . . Tool/Special . | . . . Average Slot Usage (%) 71 | . 85 68 Engine 13 | . 14 13 Treads 26 | . 28 26 Storage 14 | . 14 14 Energy Gun 13 | . 14 13 Ballistic Gun 2 | . 14 . Peak Build Rating 7 | 7 6 6 Average Rating 5 | 5 6 5 On Entrance 4 | . 6 6 Naked Turns . | . . . Heaviest Build 13 | 13 13 13 Greatest Support 40 | 40 40 40 Greatest Overweight (x) . | . . . Average Overweight (x) . | . . . Largest Inventory Capacity 8 | 8 8 8 Average Capacity 7 | 7 8 8 Most Carried 8 | 6 4 8 Average Carried 5 | 2 4 7 Final Capacity 8 | 8 8 8 Final Carried 6 | 4 4 6 Class Distribution -------------------- 100% | Mutant Dominant Class ---------------- Mutant | -10/Materials Mutant | -10/Subcaves Resources | -11 -10 -10 ----------- Run | Yrd Mat Sub Matter Collected 312 | 288 . 24 Remotely . | . . . Salvage Created 253 | 153 . 100 Parts 18 | 11 . 7 Haulers Intercepted . | . . . Recyclers Shooed . | . . . Parts Field Recycled . | . . . Retrieved Matter . | . . . Parts Self-Destructed . | . . . Prevented . | . . . Kills | -11 -10 -10 ------- Run | Yrd Mat Sub Combat Hostiles Destroyed 2 | . . 2 Guns 2 | . . 2 Classes Destroyed 4 | 3 . 1 Worker 1 | 1 . . Tunneler 3 | 3 . . Recycler 1 | 1 . . Subdweller 2 | . . 2 Best Kill Streak 2 | 2 . 2 Combat Bots Only 2 | . . 2 Max Kills in Single Turn 1 | 1 . 1 Gunslinging . | . . . Exploded . | . . . Melee . | . . . Uniques/NPCs Destroyed . | . . . Combat | -11 -10 -10 -------- Run | Yrd Mat Sub Hostile Shots Fired 47 | . . 47 Missed 13 | . . 13 Hits 34 | . . 34 Projectile 34 | . . 34 AOE 7 | . . 7 Damage Taken 1000 | . . 1000 Core 260 | . . 260 Absorbed by Shields . | . . . Core Remaining (%) 100 | 100 . . Volleys Fired 26 | 11 . 15 Largest 2 | 2 . 2 Hottest 60 | 60 . 60 Shots Fired 41 | 22 . 19 Gun 41 | 22 . 19 Cannon . | . . . Launcher . | . . . Special . | . . . Kinetic 15 | 11 . 4 Thermal 15 | 11 . 4 Explosive . | . . . Electromagnetic 11 | . . 11 Robot Hit Streak 7 | 5 . 7 Robot Miss Streak 4 | 4 . 2 Penetration Max . | . . . Secondary Targets . | . . . Shots Hit Robots 26 | 11 . 15 Core Hits 12 | 4 . 8 Critical Kills . | . . . Critical Parts Destroyed 1 | 1 . . Critical Strikes 2 | 1 . 1 Destroy 2 | 1 . 1 Melee Attacks . | . . . Impact . | . . . Slashing . | . . . Piercing . | . . . Sneak Attacks . | . . . Combat Hostiles . | . . . Follow-up Attacks . | . . . Damage Inflicted 308 | 130 . 178 Guns 283 | 126 . 157 Cannons . | . . . Explosions . | . . . Melee . | . . . Ramming 25 | 4 . 21 Kinetic 121 | 70 . 51 Thermal 87 | 56 . 31 Explosive . | . . . Electromagnetic 75 | . . 75 Impact . | . . . Slashing . | . . . Piercing . | . . . Highest Corruption . | . . . Average Corruption . | . . . Corruption Purged . | . . . Corruption Blocked . | . . . Overload Shots . | . . . Overflow Damage . | . . . Projectiles . | . . . Explosions . | . . . Melee . | . . . Knockbacks . | . . . Impact . | . . . Kinetic . | . . . Secondary . | . . . Self-Inflicted Damage 8 | . . 8 Shots . | . . . Rammed 12 | 1 . 11 Targets Rammed 13 | 2 . 11 Kicked . | . . . Crushed 1 | 1 . . Highest Temperature . | . . . Average Temperature . | . . . Received Heat Transfer 36 | . . 36 Siege Activations . | . . . Martial Activations . | . . . Shielding Activations . | . . . Robots Disrupted . | . . . Combat Hostiles . | . . . Robots Corrupted . | . . . Combat Hostiles . | . . . Parts Fried 1 | . . 1 Impact Corruptions . | . . . Robots Melted . | . . . Combat Hostiles . | . . . Parts Melted . | . . . Heat Transferred 200 | 125 . 75 Parts Sabotaged . | . . . Parts Stolen . | . . . Parts Stripped . | . . . Power Chain Reactions . | . . . Alert | -11 -10 -10 ------- Run | Yrd Mat Sub Maximum Alert Level . | . . . Low Security (%) 100 | 100 100 . Level 1 . | . . . Level 2 . | . . . Level 3 . | . . . Level 4 . | . . . Level 5 . | . . . High Security . | . . . Max Security . | . . . Peak Influence 5 | 5 3 . Initial 3 | . 3 . Average . | 1 . . Influence Increases 25 | 25 . . Destroy 0b10 Robot/NC 25 | 25 . . Influence Decreases 25 | 20 5 . Entered New Map 2 | . 2 . Time Decay 23 | 20 3 . Squads Dispatched . | . . . Investigation . | . . . Extermination . | . . . Reinforcement . | . . . Assault . | . . . Garrison . | . . . Intercept . | . . . Searches Triggered . | . . . Construction Impeded . | . . . Haulers Reinforced . | . . . Active Scanning Responses . | . . . Cargo Convoy Interrupts . | . . . Stealth | -11 -10 -10 --------- Run | Yrd Mat Sub Distress Signals . | . . . Communications Jammed . | . . . Distress Signals . | . . . Times Spotted 5 | . . 5 Peak Tracking Total 3 | . . 3 Tactical Retreats . | . . . Traps | -11 -10 -10 ------- Run | Yrd Mat Sub Traps Triggered . | . . . Indirectly . | . . . Trap Hack Attempts . | . . . Triggered . | . . . Disarmed . | . . . Reprogrammed . | . . . Reused . | . . . Traps Extracted . | . . . Installed . | . . . Triggered . | . . . Machines | -11 -10 -10 ---------- Run | Yrd Mat Sub Machines Disabled . | . . . Max in Single Turn . | . . . Machines Repaired . | . . . Machines Dismantled . | . . . Machines Sabotaged . | . . . Overloaded Fab Kills . | . . . Hacking | -11 -10 -10 --------- Run | Yrd Mat Sub Machines Accessed 1 | . . 1 Terminals . | . . . Fabricators . | . . . Repair Stations . | . . . Recycling Units . | . . . Scanalyzers . | . . . Garrison Access . | . . . Total Hacks 4 | . . 4 Successful 4 | . . 4 Failed . | . . . Catastrophic . | . . . Database Lockouts . | . . . Manual . | . . . Terminals . | . . . Fabricators . | . . . Repair Stations . | . . . Recycling Units . | . . . Scanalyzers . | . . . Garrison Access . | . . . Terminal Hacks 4 | . . 4 Record 4 | . . 4 Fabricator Hacks . | . . . Repair Station Hacks . | . . . Recycling Unit Hacks . | . . . Scanalyzer . | . . . Garrison Access Hacks . | . . . Unauthorized Hacks . | . . . Terminals . | . . . Fabricators . | . . . Repair Stations . | . . . Recycling Units . | . . . Scanalyzers . | . . . Garrison Access . | . . . Data Cores Recovered . | . . . Used . | . . . Hacking Detections . | . . . Full Trace Events . | . . . Feedback Events . | . . . Feedback Blocked . | . . . Robot Schematics Acquired . | . . . Robots Built . | . . . Authchips . | . . . Time . | . . . Total Robot Build Rating . | . . . Part Schematics Acquired . | . . . Parts Built . | . . . Authchips . | . . . Time . | . . . Total Part Build Rating . | . . . Parts Repaired . | . . . Time . | . . . Parts Recycled . | . . . Recycled Matter . | . . . Retrieved Matter . | . . . Retrieved Components . | . . . Parts Scanalyzed . | . . . Part Schematics Acquired . | . . . Parts Damaged . | . . . Bothacking | -11 -10 -10 ------------ Run | Yrd Mat Sub Used RIF Installer . | . . . Robots Hacked . | . . . Non-combat . | . . . Combat . | . . . Robot Hacks Applied . | . . . Relay Couplers Released . | . . . Fabnet Peak Effective % . | . . . Robots Rewired . | . . . Allies Hacked . | . . . Hacks Repelled . | . . . Allies | -11 -10 -10 -------- Run | Yrd Mat Sub Total Allies . | . . . Largest Group . | . . . Highest-Rated Group . | . . . Highest-Rated Ally . | . . . Total Orders . | . . . Ally Attacks . | . . . Total Damage . | . . . Kills . | . . . Allies Corrupted . | . . . Allies Melted . | . . . Intel | -11 -10 -10 ------- Run | Yrd Mat Sub Active Infowar (turns) . | . . . Robot Analysis Total . | . . . Derelict Logs Recovered . | . . . Drone Launches . | . . . Drone Recoveries . | . . . Exploration | -11 -10 -10 ------------- Run | Yrd Mat Sub Turns Passed 642 | 159 71 412 Spaces Moved 318 | 63 38 217 Core 4 | 4 . . Treads 303 | 59 38 206 Legs . | . . . Wheels 11 | . . 11 Hover . | . . . Flight . | . . . Fastest Speed 50 | 50 160 110 Average Speed 156 | 153 160 157 Slowest Speed 160 | 160 160 160 Overloaded Moves . | . . . Propulsion Burnouts . | . . . Robots Hopped . | . . . Potential Cave-ins . | . . . Cave-ins Triggered . | . . . Exploration Rate (%) 9 | 5 10 12 Regions Visited 2 Branch Regions 1 Pre-discovered Areas . | . . . Known Exits Taken . | . . . Unknown Exits Taken 2 | 1 1 . Scrap Searched . | . . . Spaces Dug . | . . . Terrain Destroyed . | . . . Melee . | . . . Projectile . | . . . AOE . | . . . Terrain Rammed . | . . . Walls Destroyed . | . . . Machines Disabled . | . . . Actions | -11 -10 -10 --------- Run | Yrd Mat Sub Total 416 | 101 48 267 Wait 33 | 12 11 10 Move 316 | 62 37 217 Hop . | . . . Pick Up 13 | 6 . 7 Fast Attach 7 | 6 . 1 Attach 3 | . . 3 Detach . | . . . Swap . | . . . Drop 5 | 2 . 3 Fire 26 | 11 . 15 Melee . | . . . Ram 8 | . . 8 Kick . | . . . Crush 5 | 2 . 3 Escape Stasis . | . . . Rewire . | . . . Trap . | . . . Miscellaneous . | . . . Route ------- -11/Scrapyard -10/Materials -10/Subcaves History --------- Turn | Location | Event 22 | -11/Scrapyard | Discovered new exit (range 16) 160 | -11/Scrapyard | Entered Materials 161 | -10/Materials | Met a group of wandering Federalists 213 | -10/Materials | Discovered new exit (range 3) 231 | -10/Materials | Entered Subcaves 232 | -10/Subcaves | Continued accompanying wandering Federalists (5) 235 | -10/Subcaves | Ambushed by Subdweller buried in earth 263 | -10/Subcaves | Lost 5 allies 304 | -10/Subcaves | Build established: Mutant 372 | -10/Subcaves | Visited Clippyterm 377 | -10/Subcaves | Learned Factory stockpile data 377 | -10/Subcaves | Learned Factory garrison access intel 627 | -10/Subcaves | Core integrity fell below 50% 635 | -10/Subcaves | Core integrity fell below 20% 643 | -10/Subcaves | Destroyed by QO-D52(R) with Subdweller Machine Gun Last Messages --------------- 00466_ Subatomizers dissect the Disposable Heat Sink. 00516_ Subatomizers dissect the Sub. Monowheel. 00535_ Dropped Ion Engine. 00536_ Acquired Sub. Power Source. 00538_ Dropped Ion Engine. 00541_ Subatomizers dissect the Sub. Monowheel. 00542_ Acquired Ion Engine. 00548_ Acquired 10 matter. 00551_ Subatomizers dissect the Sub. Monowheel. 00613_ EM Pulse Gun destroyed. 00615_ Lgt. Treads destroyed. 00616_ Slammed into ZV-Z59(R). 00621_ Lgt. Treads destroyed. 00622_ Acquired 2 matter. 00622_ Aluminum Leg destroyed. 00623_ Slammed into ZV-Z59(R). 00627_ Ion Engine destroyed. 00627_ Slammed into ZV-Z59(R). Map ----- +----------------------------------------------------+ | ?????????????????????????????????????????????????? | | ?????????????????????????????????????????????????? | | ?????????????????????????????????????????????????? | | ?????????????????????????????????????????????????? | | ?????????????????????????????????????????????????? | | ???????????????????????????#?????????????????????? | | ???????????????????????? ?????????????????????? | | ???????????????????????? ?????????????????????? | | ????????????????????# #" ?????????????????????? | | ?????????????????????# "" "?????????????????????? | | ????????????????????## "" ##???????????????????? | | ????????????????????? " " ##??????????????????? | | ?????????????????????# "" "" #??????????????????? | | ???????????????????### """ "" #??????????????????? | | ???????????????????# "" "%#???????????????????? | | ????????????????????#"" ""%#???????????????????? | | ????????????????????#" """%#???????????????????? | | ???????????????????## " """RR#???????????????????? | | ???????????????????# " "" % #???????????????????? | | ??????????????????### ## % #???????????????????? | | ?????????????????##; ; ##???????????????????? | | ?????????????????# #???????????????????? | | ????????????????## ##???????????????????? | | ????????????????# ######??????####????? | | ????????????????# # ## ####??## ###??? | | ????????????????# @ ##?# ##?? | | ????????????????# #?# #?? | | ???????????###### # # #?# #?? | | ?????????### ## ## #### #### #??? | | ????????## # ######## ##?# #??? | | ??????### ### % #####???## #??# #??? | | ?????## ### ##??####?# #?## #??? | | ?????# ## *##### ##?# #?# #??? | | ????## %* ### ### #??? | | ???## & ## ##??? | | ???# ##### #####???? | | ???# #### ##??## #???????? | | ???# ##??## ##??## #???????? | | ???## #????## #???## #???????? | | ????# #?????#### %## ##????## #???????? | | ????# ##????????## ### ##??????########???????? | | ????## #?????????###?###??????????????????????? | | ?????## #??????????????????????????????????????? | | ?????## #??????????????????????????????????????? | | ###### ##??????????????????????????????????????? | | """## ####???????????????????????????????????? | | "" ## ##??????????????????????????????????? | | "X #??????????????????????????????????? | | "" ## #??????????????????????????????????? | | """### ### #??????????????????????????????????? | +----------------------------------------------------+ Best States ------------- Heat Dissipation 25 Energy Generation 10 Energy Capacity 250 Matter Stores 300 Matter Capacity 300 Sight Range 16 Terrain Scan Density 10 Evasion (%) 40 Recoil Reduction 2 Item Schematics ----------------- None Robot Schematics ------------------ None Fabricated ------------ Nothing Repaired ---------- Nothing Alien Tech Used ----------------- None Achievements -------------- None Challenges ------------ None Game ------ Seed SpikedTowerGuard Manual? 0 Play Time 00:06:36 Cumulative 230.8 hours Start 2025.05.30 @ 14:19:24 End 2025.05.30 @ 17:15:46 Sessions 1 Manual Loads 0 Difficulty Rogue Special Mode None Game No. 128 Rogue 125 Adventurer 3 Explorer 0 Win Type - Total 4 Types 4/0/0/0/0/0/0/0/0/0 Lore% 63 Gallery% 66 Achievement% 55 Wizard Run 0 Options --------- Layout 1 ASCII 0 Keyboard 1 Movement Vi Keybinds 0 Fullscreen 1 Font 28/SmallcapsGlow Map View 50x43 Zoom Use 0% Tactical HUD 1 Map Filters NONE Filters NONE Steam X RUN: 3d983173-dfbb-45da-9522-f53ef4c6ba9c